lending/lending_fUSD_20240510
["ID","MTS","AMOUNT","RATE_DAILY","PERIOD"]
[326770016,1715337078482,-500.0,0.00027945,6]
[326770017,1715337078492,-2182.52,0.00027945,6]
[326770018,1715337078501,-583.56,0.00027945,6]
[326770019,1715337078511,-500.0,0.00027945,6]
[326770020,1715337078520,-1683.2,0.00027945,6]
[326770021,1715337078530,-500.0,0.00027945,6]
[326770022,1715337078539,-500.0,0.00027945,6]
[326770023,1715337078551,-2643.99,0.00027945,6]
[326770024,1715337078561,-2064.74,0.00027945,6]
[326770025,1715337078570,-500.0,0.00027945,6]
[326770026,1715337078579,-4604.99,0.00027945,6]
[326770027,1715337078588,-778.98,0.00027945,6]
[326770028,1715337078598,-500.0,0.00027945,6]
[326770029,1715337078607,-500.0,0.00027945,6]
[326770030,1715337078617,-500.0,0.00027945,6]
[326770031,1715337078627,-500.0,0.00027945,6]
[326770032,1715337078637,-1574.73,0.00027945,6]
[326770033,1715337078648,-500.0,0.00027945,6]
[326770034,1715337078658,-1331.2,0.00027945,6]
[326770035,1715337078668,-2453.31,0.00027945,6]
[326770036,1715337078678,-7202.45,0.00027945,6]
[326770037,1715337078687,-712.75,0.00027945,6]
[326770038,1715337078696,-2833.73,0.00027945,6]
[326770039,1715337078706,-677.79,0.00027945,6]
[326770040,1715337078715,-500.0,0.00027945,6]
[326770041,1715337078725,-1873.23,0.00027945,6]
[326770042,1715337078735,-500.0,0.00027945,6]
[326770043,1715337078750,-2295.32,0.00027945,6]
[326770044,1715337078759,-3536.38,0.00027945,6]
[326770045,1715337078768,-2206.94,0.00027945,6]
[326770046,1715337078778,-1472.39,0.00027945,6]
[326770047,1715337078789,-1212.53,0.00027945,6]
[326770048,1715337078799,-801.27,0.00027945,6]
[326770049,1715337078808,-1637.87,0.00027945,6]
[326770050,1715337078819,-2147.31,0.00027945,6]
[326770051,1715337078828,-1023.45,0.00027945,6]
[326770052,1715337078837,-500.0,0.00027945,6]
[326770053,1715337078846,-500.0,0.00027945,6]
[326770054,1715337078855,-500.0,0.00027945,6]
[326770055,1715337078864,-5554.2,0.00027945,6]
[326770056,1715337078874,-698.33,0.00027945,6]
[326770057,1715337078882,-6403.19,0.00027945,6]
[326770058,1715337078892,-1806.2,0.00027945,6]
[326770059,1715337078901,-500.0,0.00027945,6]
[326770060,1715337078911,-500.0,0.00027945,6]
[326770061,1715337078921,-2384.96,0.00027945,6]
[326770062,1715337078930,-808.2,0.00027945,6]
[326770063,1715337078939,-500.0,0.00027945,6]
[326770064,1715337078949,-500.0,0.00027945,6]
[326770065,1715337078958,-3341.85,0.00027945,6]
[326770066,1715337078968,-500.0,0.00027945,6]
[326770067,1715337078977,-4036.77,0.00027945,6]
[326770068,1715337078986,-3481.08,0.00027945,6]
[326770069,1715337078995,-7268.12,0.00027945,6]
[326770070,1715337079005,-526.11,0.00027945,6]
[326770071,1715337079014,-567.13,0.00027945,6]
[326770072,1715337079023,-500.0,0.00027945,6]
[326770073,1715337079032,-1536.23,0.00027945,6]
[326770074,1715337079042,-759.31,0.00027945,6]
[326770075,1715337079051,-3893.28,0.00027945,6]
[326770076,1715337079061,-8675.95,0.00027945,6]
[326770077,1715337079070,-768.82,0.00027945,6]
[326770078,1715337079080,-500.0,0.00027945,6]
[326770079,1715337079089,-6068.54,0.00027945,6]
[326770080,1715337079099,-2420.82,0.00027945,6]
[326770081,1715337079109,-2955.7,0.00027945,6]
[326770082,1715337079118,-500.0,0.00027945,2]
[326770083,1715337079127,-555.18,0.00027945,6]
[326770084,1715337079136,-1147.82,0.00027945,6]
[326770085,1715337079146,-1638.67,0.00027945,6]
[326770086,1715337079155,-500.0,0.00027945,6]
[326770087,1715337079164,-1391.69,0.00027945,6]
[326770088,1715337079173,-25715.46,0.00027945,6]
[326770089,1715337079183,-1177.44,0.00027945,6]
[326770090,1715337079192,-1769.7,0.00027945,6]
[326770091,1715337079201,-500.0,0.00027945,6]
[326770092,1715337079210,-500.0,0.00027945,6]
[326770093,1715337079219,-806.61,0.00027945,6]
[326770094,1715337079229,-2391.66,0.00027945,6]
[326770095,1715337079238,-719.79,0.00027945,6]
[326770096,1715337079247,-1893.75,0.00027945,6]
[326770097,1715337079257,-500.0,0.00027945,6]
[326770098,1715337079267,-544.64,0.00027945,6]
[326770099,1715337079276,-647.7,0.00027945,6]
[326770100,1715337079285,-796.73,0.00027945,6]
[326770101,1715337079295,-800.69,0.00027945,6]
[326770102,1715337079304,-611.73,0.00027945,6]
[326770103,1715337079314,-567.7,0.00027945,6]
[326770104,1715337079324,-4189.24,0.00027945,6]
[326770105,1715337079334,-662.25,0.00027945,6]
[326770106,1715337079343,-500.0,0.00027945,6]
[326770107,1715337079353,-1138.58,0.00027945,6]
[326770108,1715337079363,-598.01,0.00027945,6]
[326770109,1715337079373,-548.45,0.00027945,6]
[326770110,1715337079382,-2722.96,0.00027945,6]
[326770111,1715337079392,-2933.99,0.00027945,6]
[326770112,1715337079402,-978.47,0.00027945,2]
[326770113,1715337079411,-969.26,0.00027945,6]
[326770114,1715337079421,-1524.15,0.00027945,6]
[326770115,1715337079430,-2125.79,0.00027945,6]
[326770116,1715337079440,-1956.3,0.00027945,6]
[326770117,1715337079449,-500.0,0.00027945,6]
[326770118,1715337079459,-500.0,0.00027945,6]
[326770119,1715337079469,-1000.0,0.00028,4]
[326770120,1715337079479,-509.0,0.00028,4]
[326770121,1715337079489,-10000.0,0.00028,5]
[326770122,1715337079499,-1129.74135404,0.00028085,2]
[326770123,1715337079508,-153.48988813,0.00028124,2]
[326770124,1715337079518,-173.05101,0.00028198,20]
[326770125,1715337079527,-834.93,0.000282,2]
[326770126,1715337079536,-150.16,0.00028203,2]
[326770127,1715337079547,-500.0,0.00028219,7]
[326770128,1715337079557,-500.0,0.00028219,7]
[326770129,1715337079567,-500.0,0.00028219,7]
[326770130,1715337079577,-692.04,0.00028219,7]
[326770131,1715337079587,-500.0,0.00028219,7]
[326770132,1715337079597,-500.0,0.00028219,7]
[326770133,1715337079608,-500.0,0.00028219,7]
[326770134,1715337079619,-500.0,0.00028219,7]
[326770135,1715337079629,-1170.33,0.00028219,7]
[326770136,1715337079639,-764.28,0.00028219,7]
[326770137,1715337079649,-708.94,0.00028219,7]
[326770138,1715337079659,-660.63,0.00028219,7]
[326770139,1715337079669,-500.0,0.00028219,7]
[326770140,1715337079679,-500.0,0.00028219,7]
[326770141,1715337079689,-697.74,0.00028219,7]
[326770142,1715337079699,-401.69883913,0.00028219,7]
[326770143,1715337079709,-515.18,0.00028219,7]
[326770144,1715337079719,-500.0,0.00028219,7]
[326770145,1715337079729,-524.65,0.00028219,7]
[326770146,1715337079744,-500.0,0.00028219,7]
[326770147,1715337079753,-581.11,0.00028219,7]
[326770148,1715337079763,-500.0,0.00028219,7]
[326770149,1715337079774,-873.55,0.00028219,7]
[326770150,1715337079785,-500.0,0.00028219,7]
[326770151,1715337079795,-500.0,0.00028219,7]
[326770152,1715337079804,-500.0,0.00028219,7]
[326770153,1715337079813,-500.0,0.00028219,7]
[326770154,1715337079826,-500.0,0.00028219,7]
[326770155,1715337079837,-543.21,0.00028219,7]
[326770156,1715337079847,-500.0,0.00028219,7]
[326770157,1715337079858,-355.30848381,0.00028219,7]
[326770158,1715337079868,-672.64,0.00028219,7]
[326770159,1715337079878,-688.39,0.00028219,7]
[326770160,1715337079888,-666.11,0.00028219,7]
[326770161,1715337079898,-774.54,0.00028219,7]
[326770162,1715337079909,-540.95880382,0.00028219,7]
[326770163,1715337079920,-883.79,0.00028219,7]
[326770164,1715337079930,-500.0,0.00028219,7]
[326770165,1715337079940,-519.55,0.00028219,7]
[326770166,1715337079950,-592.32,0.00028219,7]
[326770167,1715337079960,-565.84,0.00028219,7]
[326770168,1715337079979,-965.11,0.00028219,7]
[326770169,1715337079998,-947.5,0.00028219,7]
[326770170,1715337080009,-500.0,0.00028219,7]
[326770171,1715337080019,-500.0,0.00028219,7]
[326770172,1715337080029,-500.0,0.00028219,7]
[326770173,1715337080039,-628.86,0.00028219,7]
[326770174,1715337080049,-501.09,0.00028219,7]
[326770175,1715337080059,-500.0,0.00028219,7]
[326770176,1715337080069,-500.0,0.00028219,7]
[326770177,1715337080079,-500.0,0.00028219,7]
[326770178,1715337080090,-586.84,0.00028219,7]
[326770179,1715337080100,-879.19,0.00028219,7]
[326770180,1715337080110,-500.0,0.00028219,7]
[326770181,1715337080120,-615.51,0.00028219,7]
[326770182,1715337080130,-500.0,0.00028219,7]
[326770183,1715337080139,-657.39,0.00028219,7]
[326770184,1715337080149,-500.0,0.00028219,7]
[326770185,1715337080159,-1003.11,0.00028219,7]
[326770186,1715337080169,-500.0,0.00028219,7]
[326770187,1715337080178,-500.0,0.00028219,7]
[326770188,1715337080188,-595.17,0.00028219,7]
[326770189,1715337080198,-665.74,0.00028219,7]
[326770190,1715337080207,-633.36,0.00028219,7]
[326770191,1715337080217,-500.0,0.00028219,7]
[326770192,1715337080227,-500.0,0.00028219,7]
[326770193,1715337080237,-500.0,0.00028219,7]
[326770194,1715337080247,-522.34844866,0.00028219,7]
[326770195,1715337080257,-650.78,0.00028219,7]
[326770196,1715337080267,-531.25,0.00028219,7]
[326770197,1715337080277,-500.0,0.00028219,7]
[326770198,1715337080287,-500.0,0.00028219,7]
[326770199,1715337080297,-500.0,0.00028219,7]
[326770200,1715337080307,-500.0,0.00028219,7]
[326770201,1715337080317,-500.0,0.00028219,7]
[326770202,1715337080327,-562.13,0.00028219,7]
[326770203,1715337080338,-150.0,0.00028219,7]
[326770204,1715337080348,-500.0,0.00028219,7]
[326770205,1715337080358,-820.55,0.00028219,7]
[326770206,1715337080368,-500.0,0.00028219,7]
[326770207,1715337080378,-500.0,0.00028219,7]
[326770208,1715337080388,-500.0,0.00028219,7]
[326770209,1715337080398,-501.65,0.00028219,7]
[326770210,1715337080408,-539.09,0.00028219,7]
[326770211,1715337080418,-500.0,0.00028219,7]
[326770212,1715337080428,-500.0,0.00028219,7]
[326770213,1715337080438,-925.25,0.00028219,7]
[326770214,1715337080448,-500.0,0.00028219,7]
[326770215,1715337080458,-830.57,0.00028219,7]
[326770216,1715337080468,-500.0,0.00028219,7]
[326770217,1715337080478,-841.83,0.00028219,7]
[326770218,1715337080489,-517.11,0.00028219,7]
[326770219,1715337080499,-612.56,0.00028219,7]
[326770220,1715337080508,-500.0,0.00028219,7]
[326770221,1715337080519,-500.0,0.00028219,7]
[326770222,1715337080529,-500.0,0.00028219,7]
[326770223,1715337080540,-500.0,0.00028219,7]
[326770224,1715337080552,-500.0,0.00028219,7]
[326770225,1715337080562,-544.59,0.00028219,7]
[326770226,1715337080573,-585.55,0.00028219,7]
[326770227,1715337080583,-593.45,0.00028219,7]
[326770228,1715337080593,-500.0,0.00028219,7]
[326770229,1715337080603,-500.0,0.00028219,7]
[326770230,1715337080614,-500.0,0.00028219,7]
[326770231,1715337080624,-515.43,0.00028219,7]
[326770232,1715337080634,-500.0,0.00028219,7]
[326770233,1715337080644,-500.0,0.00028219,7]
[326770234,1715337080654,-910.95,0.00028219,7]
[326770235,1715337080665,-825.64,0.00028219,7]
[326770236,1715337080675,-580.76,0.00028219,7]
[326770237,1715337080686,-500.0,0.00028219,7]
[326770238,1715337080696,-500.0,0.00028219,7]
[326770239,1715337080706,-529.86,0.00028219,17]
[326770240,1715337080716,-221.71728489,0.00028219,7]
[326770241,1715337080727,-500.0,0.00028219,7]
[326770242,1715337080738,-558.23,0.00028219,7]
[326770243,1715337080752,-500.0,0.00028219,7]
[326770244,1715337080762,-500.0,0.00028219,7]
[326770245,1715337080773,-500.0,0.00028219,7]
[326770246,1715337080784,-500.0,0.00028219,7]
[326770247,1715337080794,-601.75094396,0.00028219,7]
[326770248,1715337080804,-500.0,0.00028219,7]
[326770249,1715337080816,-1708.63,0.00028219,7]
[326770250,1715337080827,-500.0,0.00028219,7]
[326770251,1715337080838,-846.28,0.00028219,7]
[326770252,1715337080848,-500.02,0.00028219,7]
[326770253,1715337080859,-864.33,0.00028219,7]
[326770254,1715337080869,-500.0,0.00028219,7]
[326770255,1715337080880,-500.0,0.00028219,7]
[326770256,1715337080890,-500.0,0.00028219,7]
[326770257,1715337080900,-500.0,0.00028219,7]
[326770258,1715337080911,-703.88,0.00028219,7]
[326770259,1715337080921,-1287.64,0.00028219,7]
[326770260,1715337080934,-571.32,0.00028219,7]
[326770261,1715337080944,-1617.59,0.00028219,7]
[326770262,1715337080954,-500.0,0.00028219,7]
[326770263,1715337080964,-1131.29,0.00028219,7]
[326770264,1715337080975,-500.0,0.00028219,7]
[326770265,1715337080985,-500.0,0.00028219,7]
[326770266,1715337080996,-667.88,0.00028219,7]
[326770267,1715337081006,-2000.0,0.00028219,7]
[326770268,1715337081019,-500.0,0.00028219,7]
[326770269,1715337081029,-657.3,0.00028219,7]
[326770270,1715337081040,-500.0,0.00028219,7]
[326770271,1715337081050,-500.0,0.00028219,7]
[326770272,1715337081060,-663.42,0.00028219,7]
[326770273,1715337081071,-914.08,0.00028219,7]
[326770274,1715337081081,-549.99,0.00028219,7]
[326770275,1715337081091,-500.0,0.00028219,7]
[326770276,1715337081101,-500.0,0.00028219,7]
[326770277,1715337081111,-500.0,0.00028219,7]
[326770278,1715337081120,-1140.2,0.00028219,7]
[326770279,1715337081131,-921.94,0.00028219,7]
[326770280,1715337081141,-848.69,0.00028219,7]
[326770281,1715337081151,-500.0,0.00028219,7]
[326770282,1715337081161,-1202.99,0.00028219,7]
[326770283,1715337081171,-546.66,0.00028219,7]
[326770284,1715337081181,-500.0,0.00028219,7]
[326770285,1715337081190,-500.0,0.00028219,7]
[326770286,1715337081200,-1089.2,0.00028219,7]
[326770287,1715337081210,-986.23,0.00028219,7]
[326770288,1715337081220,-500.0,0.00028219,7]
[326770289,1715337081230,-500.0,0.00028219,7]
[326770290,1715337081240,-500.0,0.00028219,7]
[326770291,1715337081251,-969.6,0.00028219,7]
[326770292,1715337081261,-553.41,0.00028219,7]
[326770293,1715337081271,-1805.03,0.00028219,7]
[326770294,1715337081281,-500.0,0.00028219,7]
[326770295,1715337081291,-853.17,0.00028219,7]
[326770296,1715337081302,-1824.82,0.00028219,7]
[326770297,1715337081311,-2231.16,0.00028219,7]
[326770298,1715337081321,-1325.64,0.00028219,7]
[326770299,1715337081331,-2170.9,0.00028219,7]
[326770300,1715337081342,-1842.24,0.00028219,7]
[326770301,1715337081351,-500.0,0.00028219,7]
[326770302,1715337081361,-500.0,0.00028219,7]
[326770303,1715337081370,-423.13923765,0.00028219,7]
[326770304,1715337081380,-500.0,0.00028219,7]
[326770305,1715337081389,-500.0,0.00028219,7]
[326770306,1715337081399,-1838.93,0.00028219,7]
[326770307,1715337081408,-929.05,0.00028219,7]
[326770308,1715337081418,-500.0,0.00028219,7]
[326770309,1715337081428,-1798.72,0.00028219,7]
[326770310,1715337081438,-500.0,0.00028219,7]
[326770311,1715337081447,-500.0,0.00028219,7]
[326770312,1715337081458,-710.94,0.00028219,7]
[326770313,1715337081468,-839.31,0.00028219,7]
[326770314,1715337081478,-1604.99,0.00028219,7]
[326770315,1715337081488,-548.39,0.00028219,7]
[326770316,1715337081498,-1548.89,0.00028219,7]
[326770317,1715337081509,-500.0,0.00028219,7]
[326770318,1715337081520,-1022.11,0.00028219,7]
[326770319,1715337081529,-900.06,0.00028219,7]
[326770320,1715337081540,-1057.83,0.00028219,7]
[326770321,1715337081550,-1109.12,0.00028219,7]
[326770322,1715337081560,-1228.93,0.00028219,7]
[326770323,1715337081571,-803.8,0.00028219,7]
[326770324,1715337081581,-500.0,0.00028219,7]
[326770325,1715337081592,-500.0,0.00028219,7]
[326770326,1715337081602,-500.0,0.00028219,7]
[326770327,1715337081613,-1477.95,0.00028219,7]
[326770328,1715337081623,-500.0,0.00028219,7]
[326770329,1715337081633,-668.15,0.00028219,7]
[326770330,1715337081644,-2468.51,0.00028219,7]
[326770331,1715337081655,-500.0,0.00028219,7]
[326770332,1715337081665,-603.38,0.00028219,7]
[326770333,1715337081675,-635.06,0.00028219,7]
[326770334,1715337081686,-500.0,0.00028219,7]
[326770335,1715337081697,-500.0,0.00028219,7]
[326770336,1715337081707,-614.53,0.00028219,7]
[326770337,1715337081718,-979.22,0.00028219,7]
[326770338,1715337081727,-1059.27,0.00028219,7]
[326770339,1715337081742,-2196.83,0.00028219,7]
[326770340,1715337081754,-740.16,0.00028219,7]
[326770341,1715337081765,-500.0,0.00028219,7]
[326770342,1715337081775,-655.65,0.00028219,7]
[326770343,1715337081786,-500.0,0.00028219,7]
[326770344,1715337081796,-2368.43,0.00028219,7]
[326770345,1715337081807,-736.88,0.00028219,7]
[326770346,1715337081817,-500.0,0.00028219,7]
[326770347,1715337081828,-500.0,0.00028219,7]
[326770348,1715337081838,-1569.16,0.00028219,7]
[326770349,1715337081849,-500.0,0.00028219,7]
[326770350,1715337081859,-1470.63,0.00028219,7]
[326770351,1715337081869,-1252.58,0.00028219,7]
[326770352,1715337081879,-570.07,0.00028219,7]
[326770353,1715337081889,-500.0,0.00028219,7]
[326770354,1715337081899,-907.39,0.00028219,7]
[326770355,1715337081909,-500.0,0.00028219,7]
[326770356,1715337081920,-500.0,0.00028219,7]
[326770357,1715337081930,-874.53,0.00028219,7]
[326770358,1715337081940,-2467.22,0.00028219,7]
[326770359,1715337081951,-437.3553995,0.00028219,7]
[326770360,1715337082013,-151.0,0.00022396,7]
[326770361,1715337082023,-62.6446005,0.00028219,7]
[326770362,1715337082033,-511.322331,0.00028219,7]
[326770363,1715337083482,-315.382623,0.000128,2]
[326770364,1715337083503,-119.94442286,0.00012999,2]
[326770365,1715337083528,-35.05557714,0.00012999,2]
[326770366,1715337083551,-297.49820439,0.00015,2]
[326770367,1715337083578,-287.26073661,0.00015,2]
[326770368,1715337083601,-304.74873527,0.0001521,2]
[326770369,1715337083613,-584.758941,0.00019,2]
[326770370,1715337083623,-584.758941,0.00022396,7]
[326770371,1715337083633,-543.0,0.00022607,2]
[326770372,1715337083644,-270.861383,0.00025,7]
[326770373,1715337083654,-584.758941,0.00025,7]
[326770374,1715337083663,-584.758941,0.00025562,7]
[326770375,1715337083673,-543.0,0.00025607,2]
[326770376,1715337083683,-151.0,0.00026891,2]
[326770377,1715337083693,-302.0,0.00027343,4]
[326770378,1715337083703,-584.758941,0.00027382,7]
[326770379,1715337083713,-1387.24,0.00027397,4]
[326770380,1715337083722,-625.95,0.00027397,4]
[326770381,1715337083733,-584.758941,0.00027397,7]
[326770382,1715337083746,-604.49,0.00027397,4]
[326770383,1715337083757,-1167.37,0.00027397,4]
[326770384,1715337083767,-584.758941,0.00027397,7]
[326770385,1715337083778,-500.0,0.00027643,2]
[326770386,1715337083788,-500.0,0.00027643,2]
[326770387,1715337083799,-500.0,0.00027643,2]
[326770388,1715337083809,-500.0,0.00027643,2]
[326770389,1715337083821,-500.0,0.00027643,2]
[326770390,1715337083831,-500.0,0.00027643,2]
[326770391,1715337083841,-500.0,0.00027643,2]
[326770392,1715337083851,-500.0,0.00027643,2]
[326770393,1715337083861,-500.0,0.00027643,2]
[326770394,1715337083871,-500.0,0.00027643,2]
[326770395,1715337083881,-500.0,0.00027643,2]
[326770396,1715337083891,-500.0,0.00027643,2]
[326770397,1715337083901,-500.0,0.00027643,2]
[326770398,1715337083913,-500.0,0.00027643,2]
[326770399,1715337083922,-500.0,0.00027643,2]
[326770400,1715337083932,-500.0,0.00027643,2]
[326770401,1715337083942,-1387.24,0.00027671,5]
[326770402,1715337083952,-625.95,0.00027671,5]
[326770403,1715337083961,-604.49,0.00027671,5]
[326770404,1715337083971,-1167.37,0.00027671,5]
[326770405,1715337083981,-604.0,0.00027802,7]
[326770406,1715337083991,-625.95,0.00027945,6]
[326770407,1715337084001,-1387.24,0.00027945,6]
[326770408,1715337084010,-357.127669,0.00028219,7]
[326770409,1715337084020,-500.0,0.00028219,7]
[326770410,1715337084030,-645.14,0.00028219,7]
[326770411,1715337084040,-1740.21,0.00028219,7]
[326770412,1715337084050,-712.69,0.00028219,7]
[326770413,1715337084060,-1662.43,0.00028219,7]
[326770414,1715337084069,-1006.83,0.00028219,7]
[326770415,1715337084079,-802.75,0.00028219,7]
[326770416,1715337084088,-500.0,0.00028219,7]
[326770417,1715337084098,-961.84,0.00028219,7]
[326770418,1715337084107,-826.35,0.00028219,7]
[326770419,1715337084117,-500.0,0.00028219,7]
[326770420,1715337084127,-905.52,0.00028219,7]
[326770421,1715337084137,-1034.98,0.00028219,7]
[326770422,1715337084147,-500.0,0.00028219,7]
[326770423,1715337084156,-679.12,0.00028219,7]
[326770424,1715337084166,-500.0,0.00028219,7]
[326770425,1715337084176,-500.0,0.00028219,7]
[326770426,1715337084185,-848.5,0.00028219,7]
[326770427,1715337084195,-776.81,0.00028219,7]
[326770428,1715337084204,-500.0,0.00028219,7]
[326770429,1715337084214,-776.68,0.00028219,7]
[326770430,1715337084223,-695.56,0.00028219,7]
[326770431,1715337084232,-1469.73,0.00028219,7]
[326770432,1715337084242,-534.52060873,0.00028219,7]
[326770433,1715337084252,-500.0,0.00028219,7]
[326770434,1715337084261,-810.07,0.00028219,7]
[326770435,1715337084271,-500.0,0.00028219,7]
[326770436,1715337084281,-746.59,0.00028219,7]
[326770437,1715337084291,-500.0,0.00028219,7]
[326770438,1715337084301,-500.0,0.00028219,7]
[326770439,1715337084310,-1014.99,0.00028219,7]
[326770440,1715337084319,-562.72,0.00028219,7]
[326770441,1715337084328,-500.0,0.00028219,7]
[326770442,1715337084338,-500.0,0.00028219,7]
[326770443,1715337084348,-2507.9,0.00028219,7]
[326770444,1715337084357,-500.0,0.00028219,7]
[326770445,1715337084367,-1064.33,0.00028219,7]
[326770446,1715337084377,-990.58,0.00028219,7]
[326770447,1715337084387,-500.0,0.00028219,7]
[326770448,1715337084397,-500.0,0.00028219,7]
[326770449,1715337084407,-530.55777619,0.00028219,7]
[326770450,1715337084417,-1026.13,0.00028219,7]
[326770451,1715337084428,-500.0,0.00028219,7]
[326770452,1715337084438,-1121.14,0.00028219,7]
[326770453,1715337084448,-500.0,0.00028219,7]
[326770454,1715337084458,-500.0,0.00028219,7]
[326770455,1715337084467,-1005.86,0.00028219,7]
[326770456,1715337084476,-500.0,0.00028219,7]
[326770457,1715337084486,-1293.75,0.00028219,7]
[326770458,1715337084495,-500.0,0.00028219,7]
[326770459,1715337084505,-1125.13,0.00028219,7]
[326770460,1715337084515,-468.25966136,0.00028219,7]
[326770461,1715337084530,-31.74033864,0.00028219,7]
[326770462,1715337084539,-743.38,0.00028219,7]
[326770463,1715337084549,-553.35,0.00028219,7]
[326770464,1715337084559,-625.58,0.00028219,7]
[326770465,1715337084569,-464.69966136,0.00028219,7]
[326770466,1715337086115,11449.06010349,0.00021,30]
[326770467,1715337088267,221.06829468,0.00018998,120]
[326770468,1715337089203,298.56741175,0.00011742,2]
[326770469,1715337094553,622.84572652,0.00011741,2]
[326770470,1715337125013,21043.63095266,0.00011717,2]
[326770472,1715337261075,-1694.01533626,0.00011716,2]
[326770473,1715337261107,-1061.60028014,0.00011717,2]
[326770474,1715337261119,-1694.01533626,0.00011717,2]
[326770475,1715337261130,-100.75343094,0.00011717,2]
[326770476,1715337261139,-2755.6156164,0.00012,2]
[326770503,1715338231910,-1320.12980124,0.00011985,2]
[326770505,1715338231923,-2830.81333258,0.00011985,2]
[326770507,1715338232098,-267.23393513,0.00011985,2]
[326770508,1715338232110,-4503.45641339,0.00011985,2]
[326770509,1715338232121,-539.79934511,0.00011985,2]
[326770510,1715338232133,-404.91335128,0.00011985,2]
[326770511,1715338232143,-135.9683627,0.00011985,2]
[326770512,1715338232160,-19.0316373,0.00011985,2]
[326770513,1715338232174,-1256.00059641,0.00011986,2]
[326770514,1715338232293,-438.01473985,0.00011986,2]
[326770515,1715338232303,-8698.12582113,0.00012,2]
[326770516,1715338232313,-1000.0,0.00012776,2]
[326770517,1715338232323,-173.54433881,0.000129,2]
[326770518,1715338232333,-1382.85542209,0.000129,2]
[326770519,1715338232343,-8831.6886606,0.000129,2]
[326770520,1715338232353,-2500.0,0.000129,2]
[326770521,1715338232363,-203.1658235,0.000129,2]
[326770523,1715338232373,-283.61053986,0.000129,2]
[326770525,1715338232383,-279.01863078,0.000129,2]
[326770527,1715338232392,-151.7,0.0001299,2]
[326770530,1715338232402,-151.7,0.0001299,2]
[326770532,1715338232412,-151.7,0.0001299,2]
[326770534,1715338232422,-151.7,0.0001299,2]
[326770536,1715338232431,-166.78278404,0.0001299,2]
[326770538,1715338232441,-168.77,0.0001299,2]
[326770540,1715338232451,-168.77,0.0001299,2]
[326770542,1715338232460,-168.77,0.0001299,2]
[326770544,1715338232469,-168.77,0.0001299,2]
[326770546,1715338232479,-168.77,0.0001299,2]
[326770548,1715338232489,-168.77,0.0001299,2]
[326770550,1715338232498,-168.77,0.0001299,2]
[326770552,1715338232508,-168.77,0.0001299,2]
[326770554,1715338232518,-168.77,0.0001299,2]
[326770556,1715338232529,-168.77,0.0001299,2]
[326770558,1715338232539,-450.09777938,0.00012998,2]
[326770560,1715338232549,-223.54477722,0.00012999,2]
[326770563,1715338232559,-99847.50717838,0.00013,2]
[326770565,1715338232572,-11534.60651831,0.00013,2]
[326770567,1715338232584,-672725.64199087,0.00013,2]
[326770570,1715338232596,-2285.28828624,0.00013,2]